{"text_format":"1","workbook":"xlsx","n_sheets":2,"sheets":["様式第６号「入力シート」","様式第６号「表紙」"],"not_rendered":{"charts":0,"images":0,"macros":0,"external_links":0,"defined_names":2,"comments":0,"pivot_tables":0},"unopened":[],"bounds":{"document_bytes":16777216,"sheet_cells":100000,"rows_first":2000,"rows_last":500,"rows_between":2000,"halvings":0,"cell_chars":16384,"cell_head_chars":4096},"cells_cut":0,"cells_raw":0,"read":"whole","date_system":"1900"}

{"sheet":"様式第６号「入力シート」","index":0,"n_rows":77,"n_cols":42,"rows_kept":77,"cut":false,"hidden":false,"merged":[[69,1,70,7],[69,9,69,14],[51,28,53,41],[52,9,52,23],[57,0,57,12],[62,1,63,7],[62,9,62,14],[58,1,60,7],[58,9,58,26],[59,9,59,26],[66,1,67,7],[66,9,66,14],[38,28,40,41],[46,1,46,7],[46,28,46,41],[44,9,44,27],[44,28,44,41],[42,1,42,7],[42,9,42,13],[44,1,44,7],[37,1,38,7],[55,1,55,7],[55,9,55,13],[55,28,55,41],[51,1,51,7],[48,1,49,7],[48,28,49,41],[72,0,76,0],[72,1,76,7],[72,9,72,20],[72,28,76,41],[73,9,73,20],[74,9,74,20],[75,9,75,20],[76,9,76,20],[42,28,42,41],[27,1,28,7],[27,9,27,13],[27,28,28,41],[28,9,28,13],[28,16,28,24],[30,1,35,7],[30,9,30,13],[31,9,31,15],[31,16,33,24],[32,9,32,15],[33,9,33,15],[37,28,37,41],[35,9,35,15],[30,28,34,41],[38,9,38,13],[23,9,23,13],[19,1,21,7],[19,28,21,41],[19,9,19,26],[10,1,11,7],[20,9,20,27],[21,9,21,27],[1,28,2,30],[9,1,9,27],[1,31,2,42],[11,9,11,26],[23,28,24,41],[13,1,14,7],[13,9,13,20],[13,28,16,41],[14,9,14,20],[15,1,16,7],[15,9,15,20],[16,9,16,20],[17,1,18,7],[17,9,17,20],[18,9,18,20],[23,1,24,7],[0,0,0,27],[12,1,12,24],[63,11,64,30],[10,28,11,41],[6,28,6,41],[2,1,2,7],[3,1,3,7],[4,1,4,7],[4,28,4,41],[2,8,2,20],[3,8,3,20],[5,1,5,6],[5,28,5,41],[6,1,6,7],[7,1,7,7],[9,41,9,42]]}
["様式第6号　　　　　　　　　　　　　　　　　　　　　　　　　　　　　　　　　　　　　　　　　建設工事入札参加資格調書（その１　県内業者用）\n\n※必ず、「入力シート」と「表紙」の両方を印刷して提出してください。",null,null,null,null,null,null,null,null,null,null,null,null,null,null,null,null,null,null,null,null,null,null,null,null,null,null,null,null,null,null,null,null,"Ver01"]
[null,null,null,null,null,null,null,null,null,null,null,null,null,null,null,null,null,null,null,null,null,null,null,null,null,null,null,null,"行政庁記入欄"]
[null,"商号又は名称"]
[null,"代表者氏名"]
[1,"許可番号",null,null,null,null,null,null,null,null,"－",null,null,null,null,null,null,null,null,null,null,null,null,null,null,null,null,null,"※例えば、大臣許可の場合は００－６桁の許可番号、茨城県知事許可の場合は０８－６桁の許可番号を記入"]
[null,"取消前の許可番号\n（該当者のみ記入）",null,null,null,null,null,null,null,null,"－",null,null,null,null,null,null,null,null,null,null,null,null,null,null,null,null,null,"※R3・4またはR5・6入札参加資格を持っていて許可取り消しにより、資格を取り消された場合は、取消前の許可番号を記入"]
[2,"審査基準日",null,null,null,null,null,null,null,null,"年",null,null,"月",null,null,"日",null,null,null,null,null,null,null,null,null,null,null,"※経営事項審査の審査基準日を記入（和暦で元号表示なし）\n数字で入力、何も入力がない場合は「0」を入力（空白は入力不可）"]
[3,"主たる営業所の電話番号",null,null,null,null,null,null,null,null,null,null,null,null,null,null,null,null,null,null,null,null,null,null,null,null,null,null,"※(例)",null,"０","２","９","－","３","０","１","－","４","３","３","４"]
[]
[null,"４以下を記入するときは、必ず右側の確認欄で、調書や確認書類に漏れがないか確認してください。",null,null,null,null,null,null,null,null,null,null,null,null,null,null,null,null,null,null,null,null,null,null,null,null,null,null,"【添付する調書・確認書類】",null,null,null,null,null,null,null,null,null,null,null,null,"行政庁\n確認欄"]
[4,"法人番号（13桁）",null,null,null,null,null,null,{"$f":"IF(V11=12,AA11,\"\")","v":""},null,null,null,null,null,null,null,null,null,null,null,null,{"$f":"LEN(J11)+LEN(K11)+LEN(L11)+LEN(M11)+LEN(N11)+LEN(O11)+LEN(P11)+LEN(Q11)+LEN(R11)+LEN(S11)+LEN(T11)+LEN(U11)","v":0},{"$f":"U11+S11+Q11+O11+M11+K11","v":0},{"$f":"T11+R11+P11+N11+L11+J11","v":0},{"$f":"X11*2+W11","v":0},{"$f":"MOD(Y11,9)","v":0},{"$f":"9-Z11","v":9},null,"法人番号について\n※個人事業主は記載不要\n※国税庁長官が発行する法人番号指定通知書の写し、\n　　または、国税庁法人番号公表サイトで確認してください。\n※確認資料の添付は不要"]
[null,null,null,null,null,null,null,null,null,"※先頭から２～１３桁目の１２桁を入力して下さい。先頭１桁目のチェックデジットは\n　 自動で計算し設定されます。"]
[null,"5以下を電子データで入力するときは、必ず表示が背景色なしになることを確認してください。"]
[5,"健康保険の加入状況",null,null,null,null,null,null,null,"１：加入（審査基準日）　２：適用除外",null,null,null,null,null,null,null,null,null,null,null,null,null,null,null,null,null,null,"健康保険、厚生年金保険、雇用保険の加入状況について\n※経審の結果通知書で「加入」、「適用除外」が\n　確認できない場合、申請は受付けません。\n\n※１加入、２適用除外の場合とも確認書類の添付は不要\n　　（別に提出している経審の結果通知書で確認します。）"]
[]
[6,"厚生年金保険の加入状況",null,null,null,null,null,null,null,"１：加入（審査基準日）　２：適用除外"]
[]
[7,"雇用保険の加入状況",null,null,null,null,null,null,null,"１：加入（審査基準日）　２：適用除外"]
[]
[8,"法定外の労働災害補償保険の加入状況\n",null,null,null,null,null,null,null,"０：未加入　１：総合評定値通知書により確認　２：法定外労災保険の加入資料により確認",null,null,null,null,null,null,null,null,null,null,null,null,null,null,null,null,null,null,"※２の場合は、\n　・法定外労災保険への加入が確認できる書類\n　（法定外労働災害補償制度加入証明書、保険契約証明書、保険証券等の写し）"]
[null,null,null,null,null,null,null,null,null,"※茨城県、水戸市、龍ケ崎市、下妻市、常陸太田市、笠間市、牛久市、守谷市、大子町、河内町及び八千代町は、法定外労災保険に未加入の場合、申請できません。"]
[]
[]
[9,"舗装工事特別技術職員（茨城県の舗装Ａ等級を希望する場合）",null,null,null,null,null,null,null,"０：いない　１：いる",null,null,null,null,null,null,null,null,null,null,null,null,null,null,null,null,null,null,"※１の場合は、\n　・調書（様式第6号の3）\n　・対象技術者の資格者証\n　・対象技術者の常勤性の確認書類\n　  標準報酬決定通知書の写し等　（詳細は下記手引き参照）\n　　　　令和７・８年度建設工事入札参加資格審査申請の手引きの\n　　　　「9 舗装工事特別技術職員」"]
[]
[]
[]
[10,"CPDSの一定の学習履歴を有している職員の在籍及び取得単位",null,null,null,null,null,null,null,"０：いない　１：いる",null,null,null,null,null,null,null,null,null,null,null,null,null,null,null,null,null,null,"※１の場合は、\n　・(一社)全国土木施工管理技士会連合会が発行する証明書\n　・対象技術者の常勤性の確認書類\n　　標準報酬決定通知書の写し等　（詳細は下記手引き参照）\n　　　　令和７・８年度建設工事入札参加資格審査申請の手引きの\n　　　　「10 CPDS の一定の学習履歴を有している職員の在籍及び\n　　　　取得単位」"]
[null,null,null,null,null,null,null,null,null,"ユニット",null,null,null,null,null,null,"※「１：いる」を選択した場合のみ記載\n　技術者が取得しているユニット数の合計\n"]
[]
[11,"建築CPDの一定の学習履歴を有している職員の在籍及び取得単位",null,null,null,null,null,null,null,"０：いない　１：いる",null,null,null,null,null,null,null,null,null,null,null,null,null,null,null,null,null,null,"※１の場合は、\n　・建築CPD運営会議が発行する証明書（様式3-4内訳付様式）\n　・対象技術者の常勤性の確認書類\n　　標準報酬決定通知書の写し等　（詳細は下記手引き参照）\n　　　　令和７・８年度建設工事入札参加資格審査申請の手引きの\n　　　　「11 建築CPDの一定の学習履歴を有している職員の\n　　　　在籍及び取得単位」"]
[null,null,null,null,null,null,null,null,null,"時間（建築士）",null,null,null,null,null,null,"※「１：いる」を選択した場合のみ記載\n　技術者の資格ごとの認定時間の合計を\n　添付する証明書から足し上げて記載する\n　該当のない資格の認定時間は「０」を記入する"]
[null,null,null,null,null,null,null,null,null,"時間（建築施工管理技士）"]
[null,null,null,null,null,null,null,null,null,"時間（建築設備士）"]
[null,null,null,null,null,null,null,null,null,"時間（電気工事施工管理技士）"]
[null,null,null,null,null,null,null,null,null,"時間（管工事施工管理技士）"]
[]
[12,"入職を促す取組による入職人数\n\nインターン受入、就職説明会等の取組みの実施",null,null,null,null,null,null,null,"人","３５歳未満の技術職員（２人以上の場合は「２」を記入）",null,null,null,null,null,null,null,null,null,null,null,null,null,null,null,null,null,"※経営事項審査の技術職員名簿の新規掲載者欄に○が記載されている人数"]
[null,null,null,null,null,null,null,null,null,"０：なし　１：あり",null,null,null,null,null,null,"※１人以上を記入した場合のみ記載",null,null,null,null,null,null,null,null,null,null,null,"※１の場合は、\n　・インターン受入、就職説明会等を実施したことが確認できる資料\n　　例：チラシ、HPの画面、説明会の配布資料等で会社名が\n　　　　確認できるもの）"]
[]
[]
[]
[13,"建災防の加入状況",null,null,null,null,null,null,null,"０：なし　１：あり",null,null,null,null,null,null,null,null,null,null,null,null,null,null,null,null,null,null,"※１の場合は、「建設業労働災害防止協会加入証明書」"]
[]
[14,"防災協定の締結の有無",null,null,null,null,null,null,null,"０：なし　１：茨城県と締結　２：茨城県以外",null,null,null,null,null,null,null,null,null,null,null,null,null,null,null,null,null,null,"※１の場合のみ、 「所属団体が発行する証明書」又は\n　県と直接協定を締結している場合は、「防災協定書の写し」"]
[]
[15,"女性・若年技術職員の雇用状況",null,null,null,null,null,null,null,"人","女性又は３５歳未満の技術職員（４人以上の場合は「４」を記入）",null,null,null,null,null,null,null,null,null,null,null,null,null,null,null,null,null,"※１人以上を記入した場合は、\n・女性・若年技術職員状況調書（調書第６号の５）\n・経営事項審査における技術職員名簿の写し"]
[]
[16,"外国人材の雇用状況\n（特定技能1号若しくは2号又は技術・人文知識・国際業務の在留資格を有する者を常勤の職員として雇用している場合）",null,null,null,null,null,null,null,"０：雇用していない　１：雇用している",null,null,null,null,null,null,null,null,null,null,null,null,null,null,null,null,null,null,"※１の場合は、\n　・様式第6号の6（外国人材雇用状況調書）\n　・資格者証（在留カード、在留資格認定証明書の写し等）\n　・常勤性の確認資料（健康保険・厚生年金保険被保険者標準報酬決定通知書の写し等）"]
[]
[]
[17,"障害者雇用人数\n（該当無しの場合は「０」を記入）",null,null,null,null,null,null,null,"人",null,null,null,null,null,null,null,null,null,null,null,null,null,null,null,null,null,null,"※人数を記載する場合は、\n　・障害者雇用状況調書（様式第6号の7）及び障害者の雇用又は常勤性の確認書類及び下記資料\n\n　〇障害者雇用状況報告書の提出義務がある場合\n　　・障害者雇用状況報告書の写し\n　〇障害者雇用状況報告書の提出義務がない場合\n　　・障害者に係る手帳の写し\n　　・対象技術者の常勤性の確認書類\n　　　標準報酬決定通知書の写し等　（詳細は下記手引き参照）\n　　　　令和７・８年度建設工事入札参加資格審査申請の手引きの\n　　　「17 障害者雇用人数 」"]
[null,null,null,null,null,null,null,null,null,"茨城県障害者雇用優良企業認定を受けている場合は、「２」を記載。\n※資料の添付は不要"]
[]
[]
[18,"ICT施工の実績",null,null,null,null,null,null,null,"０：なし　１：あり",null,null,null,null,null,null,null,null,null,null,null,null,null,null,null,null,null,null,"※１の場合は、\n　・施工実績調書（様式第６号の８）\n　・契約書の写し又はCORINSの写し （詳細は下記手引き参照）\n　　　　令和７・８年度建設工事入札参加資格審査申請の手引きの\n　　　　「18 ＩＣＴ施工の実績」"]
[]
["19～22は、働き方改革における項目"]
[19,"働き方改革優良（推進）企業の認定状況及び週休２日又は４週８休による労働環境改善\n※茨城県産業戦略部労働政策課が実施する働き方改革優良（推進）企業の認定状況",null,null,null,null,null,null,null,"０：認定なし　１：働き方改革優良企業認定　２：働き方改革推進企業認定",null,null,null,null,null,null,null,null,null,null,null,null,null,null,null,null,null,null,null,null,null,"※資料の添付は不要"]
[null,null,null,null,null,null,null,null,null,"０：労働環境改善なし　１：週休２日又は４週８休による労働環境改善"]
[]
[]
[20,"健康経営優良法人の認定状況\n※日本健康会議により健康経営優良法人の認定を受けている場合",null,null,null,null,null,null,null,"０：認定なし　１：認定あり",null,null,null,null,null,null,null,null,null,null,null,null,null,null,null,null,null,null,null,null,null,"※資料の添付は不要"]
[null,null,null,null,null,null,null,null,null,null,null,"※なお、本項目に該当の場合は、その加点が、働き方改革における上限となることから、19～22の他の項目には記載しないこと（その場合は、19～22の他の項目の背景色はそのままでかまいません）。"]
[]
[]
[21,"いばらき健康経営推進事業所の認定状況\n※茨城県保健医療部健康推進課が実施するいばらき健康経営推進事業所の認定状況",null,null,null,null,null,null,null,"０：認定なし　１：認定あり",null,null,null,null,null,null,null,null,null,null,null,null,null,null,null,null,null,null,null,null,null,"※資料の添付は不要"]
[]
[]
[22,"パートナーシップ構築宣言企業の認定状況\n※未来を拓くパートナーシップ構築推進会議が実施するパートナーシップ構築宣言の承認及び公表状況",null,null,null,null,null,null,null,"０：公表なし　１：公表あり",null,null,null,null,null,null,null,null,null,null,null,null,null,null,null,null,null,null,null,null,null,"※資料の添付は不要"]
[]
[]
[23,"残留措置制度の希望\n(茨城県の資格を申請する場合)\n\n(注意)\n「１希望する」を選択した場合、格付等級が前回（令和５・６年度）より上位の等級になる場合でも前年度の等級に残留することとなります。",null,null,null,null,null,null,null,"０：希望しない　１：希望する　（土木の格付残留）",null,null,null,null,null,null,null,null,null,null,null,null,null,null,null,null,null,null,"※資料の添付は不要"]
[null,null,null,null,null,null,null,null,null,"０：希望しない　１：希望する　（建築の格付残留）"]
[null,null,null,null,null,null,null,null,null,"０：希望しない　１：希望する　（電気の格付残留）"]
[null,null,null,null,null,null,null,null,null,"０：希望しない　１：希望する　（管の格付残留）"]
[null,null,null,null,null,null,null,null,null,"０：希望しない　１：希望する　（舗装の格付残留）"]

{"sheet":"様式第６号「表紙」","index":1,"n_rows":29,"n_cols":21,"rows_kept":29,"cut":false,"hidden":false,"merged":[[27,3,27,7],[21,8,21,9],[21,10,21,15],[6,17,6,24],[7,17,7,24],[4,0,4,24],[9,3,9,20],[11,3,11,20],[24,3,24,4],[24,9,24,10],[24,12,24,13],[17,0,17,1],[9,0,9,1],[11,0,11,1],[13,0,13,1],[15,0,15,1],[19,0,19,1],[21,0,21,1]]}
["様式第６号（表紙）",null,null,null,null,null,null,null,null,null,null,null,null,null,null,"Ver01"]
[]
[]
[]
["建設工事入札参加資格調書（その１　県内業者用）　　　　　　"]
[]
[null,null,null,null,null,null,null,null,null,null,null,null,null,null,null,null,null,"事務局使用欄"]
[]
[]
["商号又は名称",null,null,{"$f":"IF(様式第６号「入力シート」!$I$3=\"\",\"\",様式第６号「入力シート」!$I$3)","v":""}]
[]
["代表者氏名",null,null,{"$f":"IF(様式第６号「入力シート」!$I$4=\"\",\"\",様式第６号「入力シート」!$I$4)","v":""}]
[]
["大臣・知事コード",null,"①",{"$f":"IF(様式第６号「入力シート」!$I$5=\"\",\"\",様式第６号「入力シート」!$I$5)","v":""},{"$f":"IF(様式第６号「入力シート」!$J$5=\"\",\"\",様式第６号「入力シート」!$J$5)","v":""},"―",{"$f":"IF(様式第６号「入力シート」!$L$5=\"\",\"\",様式第６号「入力シート」!$L$5)","v":""},{"$f":"IF(様式第６号「入力シート」!$M$5=\"\",\"\",様式第６号「入力シート」!$M$5)","v":""},{"$f":"IF(様式第６号「入力シート」!$N$5=\"\",\"\",様式第６号「入力シート」!$N$5)","v":""},{"$f":"IF(様式第６号「入力シート」!$O$5=\"\",\"\",様式第６号「入力シート」!$O$5)","v":""},{"$f":"IF(様式第６号「入力シート」!$P$5=\"\",\"\",様式第６号「入力シート」!$P$5)","v":""},{"$f":"IF(様式第６号「入力シート」!$Q$5=\"\",\"\",様式第６号「入力シート」!$Q$5)","v":""},{"$f":"IF(様式第６号「入力シート」!$I$6=\"\",\"\",様式第６号「入力シート」!$I$6)","v":""},{"$f":"IF(様式第６号「入力シート」!$J$6=\"\",\"\",様式第６号「入力シート」!$J$6)","v":""},"―",{"$f":"IF(様式第６号「入力シート」!$L$6=\"\",\"\",様式第６号「入力シート」!$L$6)","v":""},{"$f":"IF(様式第６号「入力シート」!$M$6=\"\",\"\",様式第６号「入力シート」!$M$6)","v":""},{"$f":"IF(様式第６号「入力シート」!$N$6=\"\",\"\",様式第６号「入力シート」!$N$6)","v":""},{"$f":"IF(様式第６号「入力シート」!$O$6=\"\",\"\",様式第６号「入力シート」!$O$6)","v":""},{"$f":"IF(様式第６号「入力シート」!$P$6=\"\",\"\",様式第６号「入力シート」!$P$6)","v":""},{"$f":"IF(様式第６号「入力シート」!$Q$6=\"\",\"\",様式第６号「入力シート」!$Q$6)","v":""}]
[]
["審査基準日",null,"②",{"$f":"IF(様式第６号「入力シート」!$I$7=\"\",\"\",様式第６号「入力シート」!$I$7)","v":""},{"$f":"IF(様式第６号「入力シート」!$J$7=\"\",\"\",様式第６号「入力シート」!$J$7)","v":""},"年",{"$f":"IF(様式第６号「入力シート」!$L$7=\"\",\"\",様式第６号「入力シート」!$L$7)","v":""},{"$f":"IF(様式第６号「入力シート」!$M$7=\"\",\"\",様式第６号「入力シート」!$M$7)","v":""},"月",{"$f":"IF(様式第６号「入力シート」!$O$7=\"\",\"\",様式第６号「入力シート」!$O$7)","v":""},{"$f":"IF(様式第６号「入力シート」!$P$7=\"\",\"\",様式第６号「入力シート」!$P$7)","v":""},"日"]
[]
["主たる営業所の電話番号",null,"③",{"$f":"IF(様式第６号「入力シート」!$I$8=\"\",\"\",様式第６号「入力シート」!$I$8)","v":""},{"$f":"IF(様式第６号「入力シート」!$J$8=\"\",\"\",様式第６号「入力シート」!$J$8)","v":""},{"$f":"IF(様式第６号「入力シート」!$K$8=\"\",\"\",様式第６号「入力シート」!$K$8)","v":""},{"$f":"IF(様式第６号「入力シート」!$L$8=\"\",\"\",様式第６号「入力シート」!$L$8)","v":""},{"$f":"IF(様式第６号「入力シート」!$M$8=\"\",\"\",様式第６号「入力シート」!$M$8)","v":""},{"$f":"IF(様式第６号「入力シート」!$N$8=\"\",\"\",様式第６号「入力シート」!$N$8)","v":""},{"$f":"IF(様式第６号「入力シート」!$O$8=\"\",\"\",様式第６号「入力シート」!$O$8)","v":""},{"$f":"IF(様式第６号「入力シート」!$P$8=\"\",\"\",様式第６号「入力シート」!$P$8)","v":""},{"$f":"IF(様式第６号「入力シート」!$Q$8=\"\",\"\",様式第６号「入力シート」!$Q$8)","v":""},{"$f":"IF(様式第６号「入力シート」!$R$8=\"\",\"\",様式第６号「入力シート」!$R$8)","v":""},{"$f":"IF(様式第６号「入力シート」!$S$8=\"\",\"\",様式第６号「入力シート」!$S$8)","v":""},{"$f":"IF(様式第６号「入力シート」!$T$8=\"\",\"\",様式第６号「入力シート」!$T$8)","v":""},{"$f":"IF(様式第６号「入力シート」!$U$8=\"\",\"\",様式第６号「入力シート」!$U$8)","v":""}]
[]
["法人番号",null,"④",{"$f":"IF(様式第６号「入力シート」!$I$11=\"\",\"\",様式第６号「入力シート」!$I$11)","v":""},{"$f":"IF(様式第６号「入力シート」!$J$11=\"\",\"\",様式第６号「入力シート」!$J$11)","v":""},{"$f":"IF(様式第６号「入力シート」!$K$11=\"\",\"\",様式第６号「入力シート」!$K$11)","v":""},{"$f":"IF(様式第６号「入力シート」!$L$11=\"\",\"\",様式第６号「入力シート」!$L$11)","v":""},{"$f":"IF(様式第６号「入力シート」!$M$11=\"\",\"\",様式第６号「入力シート」!$M$11)","v":""},{"$f":"IF(様式第６号「入力シート」!$N$11=\"\",\"\",様式第６号「入力シート」!$N$11)","v":""},{"$f":"IF(様式第６号「入力シート」!$O$11=\"\",\"\",様式第６号「入力シート」!$O$11)","v":""},{"$f":"IF(様式第６号「入力シート」!$P$11=\"\",\"\",様式第６号「入力シート」!$P$11)","v":""},{"$f":"IF(様式第６号「入力シート」!$Q$11=\"\",\"\",様式第６号「入力シート」!$Q$11)","v":""},{"$f":"IF(様式第６号「入力シート」!$R$11=\"\",\"\",様式第６号「入力シート」!$R$11)","v":""},{"$f":"IF(様式第６号「入力シート」!$S$11=\"\",\"\",様式第６号「入力シート」!$S$11)","v":""},{"$f":"IF(様式第６号「入力シート」!$T$11=\"\",\"\",様式第６号「入力シート」!$T$11)","v":""},{"$f":"IF(様式第６号「入力シート」!$U$11=\"\",\"\",様式第６号「入力シート」!$U$11)","v":""}]
[]
["申請項目",null,null,"⑤","⑥","⑦","⑧","⑨","⑩",null,"⑪"]
[null,null,null,{"$f":"IF(様式第６号「入力シート」!$I$14=\"\",\"\",様式第６号「入力シート」!$I$14)","v":""},{"$f":"IF(様式第６号「入力シート」!$I$16=\"\",\"\",様式第６号「入力シート」!$I$16)","v":""},{"$f":"IF(様式第６号「入力シート」!$I$18=\"\",\"\",様式第６号「入力シート」!$I$18)","v":""},{"$f":"IF(様式第６号「入力シート」!$I$20=\"\",\"\",様式第６号「入力シート」!$I$20)","v":""},{"$f":"IF(様式第６号「入力シート」!$I$24=\"\",\"\",様式第６号「入力シート」!$I$24)","v":""},{"$f":"IF(様式第６号「入力シート」!$I$28=\"\",\"\",様式第６号「入力シート」!$I$28)","v":""},{"$f":"IF(様式第６号「入力シート」!$I$29=\"\",\"\",様式第６号「入力シート」!$I$29)","v":""},{"$f":"IF(様式第６号「入力シート」!$I$31=\"\",\"\",様式第６号「入力シート」!$I$31)","v":""},{"$f":"IF(様式第６号「入力シート」!$I$32=\"\",\"\",様式第６号「入力シート」!$I$32)","v":""},{"$f":"IF(様式第６号「入力シート」!$I$33=\"\",\"\",様式第６号「入力シート」!$I$33)","v":""},{"$f":"IF(様式第６号「入力シート」!$I$34=\"\",\"\",様式第６号「入力シート」!$I$34)","v":""},{"$f":"IF(様式第６号「入力シート」!$I$35=\"\",\"\",様式第６号「入力シート」!$I$35)","v":""},{"$f":"IF(様式第６号「入力シート」!$I$36=\"\",\"\",様式第６号「入力シート」!$I$36)","v":""}]
[]
[null,null,null,"⑫",null,"⑬","⑭","⑮","⑯","⑰",null,"⑱","⑲",null,"⑳","㉑","㉒"]
[null,null,null,{"$f":"IF(様式第６号「入力シート」!$I$38=\"\",\"\",様式第６号「入力シート」!$I$38)","v":""},{"$f":"IF(様式第６号「入力シート」!$I$39=\"\",\"\",様式第６号「入力シート」!$I$39)","v":""},{"$f":"IF(様式第６号「入力シート」!$I$43=\"\",\"\",様式第６号「入力シート」!$I$43)","v":""},{"$f":"IF(様式第６号「入力シート」!$I$45=\"\",\"\",様式第６号「入力シート」!$I$45)","v":""},{"$f":"IF(様式第６号「入力シート」!$I$47=\"\",\"\",様式第６号「入力シート」!$I$47)","v":""},{"$f":"IF(様式第６号「入力シート」!$I$49=\"\",\"\",様式第６号「入力シート」!$I$49)","v":""},{"$f":"IF(様式第６号「入力シート」!$I$52=\"\",\"\",様式第６号「入力シート」!$I$52)","v":""},{"$f":"IF(様式第６号「入力シート」!$I$53=\"\",\"\",様式第６号「入力シート」!$I$53)","v":""},{"$f":"IF(様式第６号「入力シート」!$I$56=\"\",\"\",様式第６号「入力シート」!$I$56)","v":""},{"$f":"IF(様式第６号「入力シート」!$I$59=\"\",\"\",様式第６号「入力シート」!$I$59)","v":""},{"$f":"IF(様式第６号「入力シート」!$I$60=\"\",\"\",様式第６号「入力シート」!$I$60)","v":""},{"$f":"IF(様式第６号「入力シート」!$I$63=\"\",\"\",様式第６号「入力シート」!$I$63)","v":""},{"$f":"IF(様式第６号「入力シート」!$I$67=\"\",\"\",様式第６号「入力シート」!$I$67)","v":""},{"$f":"IF(様式第６号「入力シート」!$I$70=\"\",\"\",様式第６号「入力シート」!$I$70)","v":""}]
[]
[null,null,null,"㉓"]
[null,null,null,{"$f":"IF(様式第６号「入力シート」!$I$73=\"\",\"\",様式第６号「入力シート」!$I$73)","v":""},{"$f":"IF(様式第６号「入力シート」!$I$74=\"\",\"\",様式第６号「入力シート」!$I$74)","v":""},{"$f":"IF(様式第６号「入力シート」!$I$75=\"\",\"\",様式第６号「入力シート」!$I$75)","v":""},{"$f":"IF(様式第６号「入力シート」!$I$76=\"\",\"\",様式第６号「入力シート」!$I$76)","v":""},{"$f":"IF(様式第６号「入力シート」!$I$77=\"\",\"\",様式第６号「入力シート」!$I$77)","v":""}]